Cogmind - Beta 17 @@@ ROGUE MODE // 2026.07.11 @ 21:19:29 Player: aperiodic Result: Destroyed by V4-R6I(R) with Subdweller Laser Performance ------------- Evolutions (0) 0 Regions Visited (2) 400 Robots Destroyed (35) 175 Value Destroyed (586) 586 Prototype IDs (14) 280 Alien Tech Used (0) 0 Bonus (0) 0 TOTAL SCORE: 1441 Bonus ------- None Cogmind --------- Core Integrity 0/250 Matter 146/300 Energy 64/100 System Corruption 0% Temperature Cool (15) Movement Rolling (105) Ox1 Location -10/Subcaves Parts ------- > --- POWER (1) -------- (None) > --- PROPULSION (2) --- Wheel Compact Wheel > --- UTILITY (2) ------ High-capacity Storage Unit Seismic Detector > --- WEAPON (2) ------- Autogun > --- INVENTORY (20) --- Meta Core Wheel Small Storage Unit High-capacity Matter Pod (0) Structural Scanner Self-contained Transmogrifier Medium Laser Medium Laser Medium Laser Autogun Autogun Autogun Shotgun Shotgun Shotgun Mining Laser Peak State ------------ > --- POWER ------------ Ion Engine > --- PROPULSION ------- Wheel Compact Wheel > --- UTILITY ---------- High-capacity Storage Unit Seismic Detector > --- WEAPON ----------- Shotgun Shotgun > --- INVENTORY -------- Meta Core Light Treads Light Treads Wheel Wheel Small Storage Unit High-capacity Matter Pod Structural Scanner Self-contained Transmogrifier EM Pulse Gun EM Pulse Gun Medium Laser Medium Laser Medium Laser Autogun Autogun Autogun Autogun Shotgun Mining Laser [Rating: 13] Favorites ----------- Power Ion Engine Engine Ion Engine Propulsion Compact Wheel Treads Light Treads Wheel Compact Wheel Utility Seismic Detector Device Seismic Detector Storage High-capacity Storage Unit Weapon Assault Rifle Energy Gun EM Pulse Gun Ballistic Gun Assault Rifle Special Weapon Mining Laser Build | -11 -10 -10 ------- Run | Yrd Mat Sub Slots Evolved . | . . . Power . | . . . Propulsion . | . . . Utility . | . . . Weapon . | . . . Parts Attached 20 | 8 10 2 Power 1 | 1 . . Engine 1 | 1 . . Core . | . . . Reactor . | . . . Propulsion 5 | 2 3 . Treads 2 | . 2 . Leg . | . . . Wheel 3 | 2 1 . Hover . | . . . Flight . | . . . Utility 3 | 2 1 . Device 1 | 1 . . Storage 2 | 1 1 . Processor . | . . . Hackware . | . . . Protection . | . . . Artifact . | . . . Weapon 11 | 3 6 2 Energy Gun 4 | 3 . 1 Energy Cannon . | . . . Ballistic Gun 6 | . 5 1 Ballistic Cannon . | . . . Launcher . | . . . Special Weapon 1 | . 1 . Impact Weapon . | . . . Slashing Weapon . | . . . Piercing Weapon . | . . . Special Melee Weapon . | . . . Unidentified Prototypes . | . . . Parts Lost 7 | . 1 6 Power 1 | . . 1 Propulsion 3 | . . 3 Utility . | . . . Weapon 3 | . 1 2 Highest Loss Streak 3 | . 1 3 To Critical Strikes . | . . . Average Backups 15 | 3 13 19 Power . | . 1 . Propulsion 3 | 1 3 3 Utility 2 | . 1 3 Weapon 8 | . 8 10 Tool/Special . | . . . Unused Backups 14 | . 3 11 Power 1 | . . 1 Propulsion 1 | . . 1 Utility 2 | . . 2 Weapon 8 | . 3 5 Tool/Special 2 | . . 2 Average Slot Usage (%) 99 | . 99 99 Engine 13 | . 14 13 Treads 8 | . 13 1 Wheel 19 | . 14 26 Device 14 | . 14 14 Storage 14 | . 14 14 Energy Gun 4 | . 4 4 Ballistic Gun 22 | . 23 20 Special Weapon 1 | . . 3 Peak Build Rating 13 | 7 11 13 Average Rating 9 | 6 8 11 On Entrance 5 | . 7 10 Avg Prop Armor Cover (%) . | . . . Naked Turns . | . . . Heaviest Build 52 | 15 52 52 Greatest Support 40 | 26 40 40 Greatest Overweight (x) 3 | 3 1 3 Average Overweight (x) . | . . 1 Largest Inventory Capacity 20 | 8 20 20 Average Capacity 18 | 7 18 20 Most Carried 20 | 5 20 20 Average Carried 15 | 3 13 19 Final Capacity 20 | 8 20 20 Final Carried 19 | 5 19 16 Class Distribution -------------------- 100% | Mutant Dominant Class ---------------- Mutant | -10/Materials Mutant | -10/Subcaves Resources | -11 -10 -10 ----------- Run | Yrd Mat Sub Matter Collected 716 | 280 356 80 Remotely . | . . . Salvage Created 946 | 191 669 86 Parts 75 | 10 49 16 Haulers Intercepted 1 | . 1 . Recyclers Shooed 1 | 1 . . Parts Field Recycled . | . . . Retrieved Matter . | . . . Parts Self-Destructed 20 | . . 20 Prevented . | . . . Parts Restored . | . . . Kills | -11 -10 -10 ------- Run | Yrd Mat Sub Combat Hostiles Destroyed 22 | . 15 7 Guns 21 | . 14 7 AOE 1 | . 1 . Classes Destroyed 8 | 2 6 . Builder 2 | . 2 . Tunneler 5 | 5 . . Hauler 1 | . 1 . Recycler 1 | 1 . . Operator 1 | . 1 . Watcher 3 | . 3 . Swarmer 13 | . 6 7 Grunt 9 | . 9 . Best Kill Streak 6 | 4 6 4 Combat Bots Only 4 | . 3 4 Max Kills in Single Turn 2 | 1 2 2 Gunslinging . | . . . Exploded 1 | . 1 . Melee . | . . . Uniques/NPCs Destroyed . | . . . Combat | -11 -10 -10 -------- Run | Yrd Mat Sub Hostile Shots Fired 138 | . 61 77 Missed 49 | . 14 35 Hits 89 | . 47 42 Projectile 89 | . 47 42 Critical Strikes 2 | . 1 1 Damage Taken 1111 | . 459 652 Core 258 | . 87 171 Absorbed by Shields . | . . . Core Remaining (%) 100 | 100 . . Volleys Fired 102 | 19 61 22 Largest 2 | 1 2 2 Hottest 100 | 50 100 100 Shots Fired 165 | 19 113 33 Gun 147 | 19 106 22 Cannon . | . . . Launcher . | . . . Special 18 | . 7 11 Kinetic 80 | . 62 18 Thermal 37 | 19 7 11 Explosive . | . . . Electromagnetic 48 | . 44 4 Robot Hit Streak 16 | 7 16 3 Robot Miss Streak 8 | 1 5 8 Penetration Max . | . . . Secondary Targets 5 | . 2 3 Max Gunslinging Chain 1 | . 1 1 Shots Hit Robots 100 | 17 71 12 Core Hits 47 | 7 32 8 Critical Kills 2 | . 1 1 Critical Parts Destroyed 2 | . 2 . Critical Strikes 5 | 1 3 1 Burn 1 | 1 . . Destroy 4 | . 3 1 Melee Attacks . | . . . Impact . | . . . Slashing . | . . . Piercing . | . . . Sneak Attacks . | . . . Combat Hostiles . | . . . Follow-up Attacks . | . . . Damage Inflicted 1432 | 214 1066 152 Guns 1348 | 214 982 152 Cannons . | . . . Explosions 84 | . 84 . Melee . | . . . Ramming . | . . . Kinetic 681 | . 562 119 Thermal 298 | 214 84 . Explosive . | . . . Electromagnetic 453 | . 420 33 Impact . | . . . Slashing . | . . . Piercing . | . . . Highest Corruption . | . . . Average Corruption . | . . . Corruption Purged . | . . . Corruption Blocked . | . . . Overload Shots . | . . . Overflow Damage . | . . . Projectiles . | . . . Explosions . | . . . Melee . | . . . Knockbacks . | . . . Impact . | . . . Kinetic . | . . . Secondary . | . . . Self-Inflicted Damage . | . . . Shots . | . . . Rammed . | . . . Targets Rammed . | . . . Kicked . | . . . Crushed . | . . . Highest Temperature 234 | 110 234 . Average Temperature 53 | 39 58 . Received Heat Transfer 321 | . 132 189 Effects 1 | . 1 . Energy Bleed 1 | . 1 . Siege Activations . | . . . Martial Activations . | . . . Shielding Activations . | . . . Robots Disrupted . | . . . Combat Hostiles . | . . . Robots Corrupted . | . . . Combat Hostiles . | . . . Parts Fried 4 | . 4 . Impact Corruptions . | . . . Robots Melted . | . . . Combat Hostiles . | . . . Parts Melted 2 | 2 . . Heat Transferred 803 | 703 100 . Parts Sabotaged . | . . . Parts Stolen . | . . . Parts Stripped . | . . . Power Chain Reactions 2 | . 2 . Alert | -11 -10 -10 ------- Run | Yrd Mat Sub Maximum Alert Level . | . . . Low Security (%) 100 | 100 100 . Level 1 . | . . . Level 2 . | . . . Level 3 . | . . . Level 4 . | . . . Level 5 . | . . . High Security . | . . . Max Security . | . . . Peak Influence 76 | 5 76 . Initial . | . . . Average 22 | 1 23 . Influence Increases 757 | 30 517 210 Destroy 0b10 Robot/C 440 | . 300 140 Destroy 0b10 Robot/NC 65 | 30 35 . Destroy Leader 78 | . 68 10 Successful Hack 28 | . 28 . Select Force Hacks 30 | . 30 . Disable Machine 30 | . 30 . Destroy Structure 11 | . 11 . Lose Combat Pursuer 75 | . 15 60 Influence Decreases 757 | 30 446 281 Entered New Map 35 | . . 35 Time Decay 712 | 30 436 246 Lost Part 10 | . 10 . Squads Dispatched 4 | . 4 . Investigation 2 | . 2 . Extermination . | . . . Reinforcement 2 | . 2 . Assault . | . . . Garrison . | . . . Intercept . | . . . Searches Triggered . | . . . Construction Impeded . | . . . Haulers Reinforced . | . . . Active Scanning Responses . | . . . Cargo Convoy Interrupts . | . . . Stealth | -11 -10 -10 --------- Run | Yrd Mat Sub Distress Signals 3 | . 3 . Communications Jammed . | . . . Distress Signals . | . . . Times Spotted 38 | . 23 15 Peak Tracking Total 6 | . 4 6 Tactical Retreats 3 | . 1 2 Traps | -11 -10 -10 ------- Run | Yrd Mat Sub Traps Triggered 1 | . . 1 Indirectly . | . . . Trap Hack Attempts . | . . . Triggered . | . . . Disarmed . | . . . Reprogrammed . | . . . Reused . | . . . Traps Extracted . | . . . Installed . | . . . Triggered . | . . . Machines | -11 -10 -10 ---------- Run | Yrd Mat Sub Machines Disabled 3 | . 2 1 Max in Single Turn 1 | . 1 1 Machines Repaired . | . . . Machines Dismantled . | . . . Machines Sabotaged . | . . . Overloaded Fab Kills . | . . . Hacking | -11 -10 -10 --------- Run | Yrd Mat Sub Machines Accessed 8 | . 7 1 Terminals 6 | . 6 . Fabricators . | . . . Repair Stations . | . . . Recycling Units 1 | . 1 . Scanalyzers . | . . . Garrison Access . | . . . Total Hacks 20 | . 19 1 Successful 11 | . 10 1 Failed 9 | . 9 . Catastrophic 1 | . 1 . Database Lockouts . | . . . Manual 13 | . 13 . Terminals 17 | . 17 . Fabricators . | . . . Repair Stations . | . . . Recycling Units 2 | . 2 . Scanalyzers . | . . . Garrison Access . | . . . Terminal Hacks 4 | . 3 1 Robot Analysis 2 | . 2 . Locate Traps 1 | . 1 . Proto ID Catalog 1 | . . 1 Fabricator Hacks . | . . . Repair Station Hacks . | . . . Recycling Unit Hacks . | . . . Scanalyzer . | . . . Garrison Access Hacks . | . . . Unauthorized Hacks 7 | . 7 . Terminals 6 | . 6 . Botnet 1 | . 1 . Skim 5 | . 5 . Fabricators . | . . . Repair Stations . | . . . Recycling Units 1 | . 1 . Tunnel 1 | . 1 . Scanalyzers . | . . . Garrison Access . | . . . Data Cores Recovered . | . . . Used . | . . . Hacking Detections 6 | . 6 . Full Trace Events 1 | . 1 . Feedback Events . | . . . Feedback Blocked . | . . . Robot Schematics Acquired . | . . . Robots Built . | . . . Authchips . | . . . Time . | . . . Total Robot Build Rating . | . . . Part Schematics Acquired . | . . . Parts Built . | . . . Authchips . | . . . Time . | . . . Total Part Build Rating . | . . . Part Studies Acquired . | . . . Parts Repaired . | . . . Time . | . . . Parts Recycled . | . . . Recycled Matter . | . . . Retrieved Matter . | . . . Retrieved Components . | . . . Parts Scanalyzed . | . . . Part Schematics Acquired . | . . . Parts Damaged . | . . . Bothacking | -11 -10 -10 ------------ Run | Yrd Mat Sub Used RIF Installer . | . . . Robots Hacked . | . . . Non-combat . | . . . Combat . | . . . Robot Hacks Applied . | . . . Relay Couplers Released . | . . . Fabnet Peak Effective % . | . . . Robots Rewired . | . . . Allies Hacked . | . . . Hacks Repelled . | . . . Allies | -11 -10 -10 -------- Run | Yrd Mat Sub Total Allies . | . . . Largest Group . | . . . Highest-Rated Group . | . . . Highest-Rated Ally . | . . . Total Orders . | . . . Ally Attacks . | . . . Total Damage . | . . . Kills . | . . . Allies Corrupted . | . . . Allies Melted . | . . . Intel | -11 -10 -10 ------- Run | Yrd Mat Sub Active Infowar (turns) 3297 | 93 1945 1259 Seismic 3297 | 93 1945 1259 Robot Analysis Total 2 | . 2 . Derelict Logs Recovered . | . . . Drone Launches . | . . . Drone Recoveries . | . . . Exploration | -11 -10 -10 ------------- Run | Yrd Mat Sub Turns Passed 3346 | 142 1945 1259 Spaces Moved 1454 | 79 718 657 Core 6 | 6 . . Treads 231 | . 209 22 Legs . | . . . Wheels 1217 | 73 509 635 Hover . | . . . Flight . | . . . Fastest Speed 50 | 50 90 105 Average Speed 124 | 92 141 109 Slowest Speed 240 | 200 240 240 Overloaded Moves . | . . . Propulsion Burnouts . | . . . Robots Hopped . | . . . Potential Cave-ins . | . . . Cave-ins Triggered . | . . . Exploration Rate (%) 41 | 4 90 30 Regions Visited 2 Branch Regions 1 Pre-discovered Areas 2 | . 2 . Known Exits Taken 1 | . 1 . Unknown Exits Taken 1 | 1 . . Scrap Searched . | . . . Spaces Dug 4 | . 4 . Terrain Destroyed 10 | . 10 . Melee . | . . . Projectile 7 | . 7 . AOE 3 | . 3 . Terrain Rammed . | . . . Walls Destroyed . | . . . Machines Disabled . | . . . Actions | -11 -10 -10 --------- Run | Yrd Mat Sub Total 2779 | 124 1519 1136 Wait 1151 | 13 698 440 Move 1452 | 78 717 657 Hop . | . . . Pick Up 24 | 5 17 2 Fast Attach 7 | 7 . . Attach 6 | . 2 4 Detach 1 | . 1 . Swap 30 | 2 18 10 Drop 6 | . 5 1 Fire 102 | 19 61 22 Melee . | . . . Ram . | . . . Kick . | . . . Crush . | . . . Escape Stasis . | . . . Rewire . | . . . Trap . | . . . Miscellaneous . | . . . Route ------- -11/Scrapyard -10/Materials (discovered 5 exits: *Mat x3 / *Min / *Sub) -10/Subcaves (discovered 3 exits: Mat x2 / *Rec) History --------- Turn | Location | Event 15 | -11/Scrapyard | Discovered new exit (range 15) 143 | -11/Scrapyard | Entered Materials 313 | -10/Materials | Build established: Mutant 485 | -10/Materials | Discovered new exit (range 3) 509 | -10/Materials | Discovered new exit (range 6) 1010 | -10/Materials | Discovered new exit (range 16) 1517 | -10/Materials | Learned 2 Storage zone layouts 1593 | -10/Materials | Learned location of 2 exits from Subcaves 1659 | -10/Materials | Loaded intel: 8 terminal locations 1717 | -10/Materials | Identified exit to Materials 1764 | -10/Materials | Identified exit to Subcaves 1851 | -10/Materials | Identified exit to Mines 1908 | -10/Materials | Learned location of Mines (-10) 1976 | -10/Materials | Learned Recycling recycling unit intel 2088 | -10/Materials | Entered Subcaves 2089 | -10/Subcaves | Approached by a straggling Scientist 2089 | -10/Subcaves | Identified exit to Materials 2090 | -10/Subcaves | Identified exit to Recycling 2333 | -10/Subcaves | Visited 4L-MR0's lab 2347 | -10/Subcaves | Found Meta Core 2350 | -10/Subcaves | Found Prototype Device 2986 | -10/Subcaves | Core integrity fell below 50% 3001 | -10/Subcaves | Shifting Twisted Machinery released Sub. Machine Gun 3005 | -10/Subcaves | A swath of the cavern ceiling suddenly collapsed 3166 | -10/Subcaves | A swath of the cavern ceiling suddenly collapsed 3322 | -10/Subcaves | Core integrity fell below 20% 3324 | -10/Subcaves | Lost 3 parts (1p1n1w) 3347 | -10/Subcaves | Destroyed by V4-R6I(R) with Subdweller Laser Last Messages --------------- 02986_ Acquired 11 matter. Sub. Machine Gun falls loose from the Twisted Machinery. 03005_ Sub. Machine Gun crushed. A swath of the cavern ceiling suddenly collapses. 89-0N2(c): "I think it's somewhere northeast of here" A swath of the cavern ceiling suddenly collapses. 03189_ Acquired 11 matter. 89-0N2(c): "I think it's somewhere northeast of here" 03271_ Wheel destroyed. 03284_ EM Pulse Gun destroyed. 03293_ Ion Engine destroyed. 89-0N2(c): "I think it's somewhere northeast of here" 03335_ EM Pulse Gun destroyed. 03345_ Lgt. Treads destroyed. Map ----- +----------------------------------------------------+ | ???????????????????# #??########??????????? | | ??????????????????## ##???????????????????? | | ?????????????????## #?###???????????????? | | ?????????????????# ### ### ##??????????????? | | ?????????????????## #### ## #??????????????? | | ??????????????????## ### ##??????????????? | | ??????????????????## ### #???????????????? | | ??????????????????# #########???????????????? | | ??????????????????# #???????????????????????? | | ??????????????????## ##???????????????????????? | | ??????????? ?????# ####?????????????????????? | | ?????????????# ## #?????????????????????? | | ??????????????# #?????????????????????? | | ??????????????#### ###???????????????????? | | ?????????????????## ### #???????????????????? | | ???????#########??## ##?# ##??????????????????? | | ???????# #???# #### ######?????????????? | | ???????### ###?#### #?????????????? | | ????????## ##??# ###???????????? | | ???????## ##?#### "#???????????? | | ??????## ##??## ### """ #??????????? | | ??????# ##?# #?##"""" #??????????? | | ??????# ## #?# ##??##""" #??????????? | | ??????## #### #?# #????##""#####???????? | | ???????### #### #?# c #????##"#"#""#???????? | | ?????????####### ### @ ##??###""#"""#???????? | | ???????????# ####"###"#"#???##### | | ???????????# ""##" ""#""###### | | ???????????### RRR #"### #"##"#"# | | ?????????????## #;R #"##"###""#""" "# % | | ??????????????## ## ; ##??###""###" # | | ???????????????# ## ###??####???#### | | ?????????????### #### ##### #????????????? | | ?????????????# #####???## ##????????????? | | ????????????# #????????####?????????????? | | ????????????# #?????????????????????????? | | ????????????## #####?????????????????????????? | | ?????????????#######?????????????????????????????? | | ?????????????????????????????????????????????????? | | ?????????????????????????????????????????????????? | | ?????????????????????????????????????????????????? | | ?????????????????????????????????????????????????? | | ?????????????????????????????????????????????????? | | ?????????????????????????????????????????????????? | | ?????????????????????????????????????????????????? | | ?????????????????????????????????????????????????? | | ?????????????????????????????????????????????????? | | ?????????????????????????????????????????????????? | | ?????????????????????????????????????????????????? | | ?????????????????????????????????????????????????? | +----------------------------------------------------+ Best States ------------- Heat Dissipation 25 Energy Generation 10 Energy Capacity 250 Matter Stores 300 Matter Capacity 300 Sight Range 16 Terrain Scan Density 10 Evasion (%) 42 Recoil Reduction 2 Item Schematics ----------------- None Robot Schematics ------------------ None Fabricated ------------ Nothing Repaired ---------- Nothing Studied --------- None Alien Tech Used ----------------- None Achievements -------------- None Challenges ------------ None Game ------ Seed PointPartitionGun Manual? 0 Play Time 00:25:33 Cumulative 713.5 hours Start 2026.07.11 @ 20:54:43 End 2026.07.11 @ 21:19:29 Sessions 1 Manual Loads 0 Difficulty Rogue Special Mode None Game No. 242 Rogue 238 Adventurer 4 Explorer 0 Win Type - Total 21 Types 9/2/6/0/0/0/2/2/0/0 Lore% 73 Gallery% 74 Achievement% 54 Wizard Run 0 Options --------- Layout 1 ASCII 0 Keyboard 0 Movement Arrows Keybinds 0 Fullscreen 1 Font 40/SmallcapsGlow Map View 50x40 Zoom Use 0% Tactical HUD 1 Map Filters NONE Filters NONE Steam 1 RUN: d637f444-de84-4ff2-afd3-a8f1e83eafae